bitfinex-derivatives/quotes_SOLF0:USTF0_20251202
["timestamp","ask_amount","ask_price","bid_price","bid_amount"]
[1764681978616,3.28,130.7,130.69,0.05312642]
[1764681978916,71.15581227,130.71,130.69,0.05312642]
[1764681980017,74.76221227,130.71,130.69,0.05312642]
[1764681980217,78.04221227,130.71,130.69,0.05312642]
[1764681980416,6.94221227,130.71,130.69,2.78312642]
[1764681980617,67.87581227,130.71,130.69,2.78312642]
[1764681980817,71.15581227,130.71,130.69,0.05312642]
[1764681981712,3.28,130.7,130.69,0.05312642]
[1764681982527,3.28,130.7,130.66,2.73]
[1764681982822,3.28,130.7,130.65,2.73]
[1764681983414,71.1,130.69,130.65,2.73]
[1764681983621,0.05106851,130.68,130.66,2.78067126]
[1764681986924,0.05106851,130.68,130.67,2.73]
[1764681987122,3.28,130.75,130.68,2.73]
[1764681987329,109.06411048,130.77,130.7,2.73]
[1764681987330,71.08,130.74,130.7,2.73]
[1764681987924,3.28,130.73,130.7,2.73]
[1764681988129,3.28,130.73,130.7,2.78189039]
[1764681988130,3.33169735,130.73,130.7,2.78189039]
[1764681989825,3.28,130.72,130.7,0.05189039]
[1764681990223,3.28,130.71,130.65,71.6189]
[1764681990632,3.28,130.71,130.66,2.73]
[1764681991329,3.33269587,130.7,130.67,0.05303237]
[1764681991631,3.33269587,130.7,130.67,2.78303237]
[1764681992128,3.33269587,130.7,130.67,0.05303237]
[1764681995530,3.28,130.76,130.7,2.73]
[1764681995732,3.28,130.76,130.71,4.72381048]
[1764681996132,3.28,130.76,130.72,2.73]
[1764681996525,0.05366758,130.75,130.73,2.77936281]
[1764681997632,0.05366758,130.75,130.73,11.65797329]
[1764681997934,0.05366758,130.75,130.74,2.73]
[1764681999625,0.05366758,130.75,130.73,64.75936281]
[1764681999935,0.05366758,130.75,130.74,2.71]
[1764682000130,0.05366758,130.75,130.74,4.70381048]
[1764682002138,67.78,130.8,130.76,2.71]
[1764682002436,67.78,130.8,130.77,2.71]
[1764682003336,67.83305664,130.8,130.77,2.76538742]
[1764682005440,67.83305664,130.8,130.78,2.71]
[1764682005639,0.05305664,130.8,130.78,4.70381048]
[1764682005842,0.05305664,130.8,130.79,2.71]
[1764682007638,4.29957228,130.83,130.79,2.71]
[1764682008143,4.29957228,130.83,130.81,2.71]
[1764682008333,4.29957228,130.83,130.82,2.71]
[1764682009238,4.29957228,130.83,130.82,4.70381048]
[1764682010844,4.29957228,130.83,130.82,2.71]
[1764682012539,4.29957228,130.83,130.82,4.70381048]
[1764682016036,7.228e-05,130.83,130.82,4.70381048]
[1764682016239,3.33,130.9,130.86,2.71]
[1764682017245,3.38716002,130.89,130.87,0.04851338]
[1764682017540,0.05716002,130.89,130.87,9.63581338]
[1764682017743,0.05716002,130.89,130.88,2.71]
[1764682017944,0.05716002,130.89,130.87,6.92581338]
[1764682018140,0.05716002,130.89,130.87,9.63581338]
[1764682019031,3.38716002,130.89,130.87,0.04851338]
[1764682019639,3.38716002,130.89,130.87,6.92591338]
[1764682019848,0.05716002,130.89,130.87,6.92591338]
[1764682020438,0.05716002,130.89,130.88,2.71]
[1764682020638,0.05716002,130.89,130.87,9.63591338]
[1764682020846,0.05716002,130.89,130.88,2.71]
[1764682021749,3.33,130.94,130.91,2.71]
[1764682021940,3.33,130.94,130.89,171.6754]
[1764682022248,3.33,130.92,130.89,64.71]
[1764682022442,5.32381048,130.91,130.88,6.8767]
[1764682022643,5.32381048,130.89,130.88,0.05686487]
[1764682023149,3.38881201,130.91,130.88,0.05686487]
[1764682023448,3.33,130.89,130.88,0.05686487]
[1764682030747,3.33,130.89,130.84,64.71]
[1764682030748,3.12,130.88,130.84,64.71]
[1764682030938,3.12,130.88,130.81,2.73]
[1764682031945,3.16859039,130.86,130.83,0.05709946]
[1764682033045,0.04859039,130.86,130.83,2.78709946]
[1764682033952,3.16859039,130.86,130.83,2.78709946]
[1764682034446,3.16859039,130.86,130.83,0.05709946]
[1764682034955,3.12,130.85,130.83,0.05709946]
[1764682036046,0.04859039,130.86,130.83,2.78709946]
[1764682036856,0.04859039,130.86,130.84,9.6089]
[1764682038858,3.16859039,130.86,130.84,6.8789]
[1764682039063,0.04859039,130.86,130.84,9.6089]
[1764682042861,3.16859039,130.86,130.83,2.78709946]
[1764682043660,3.16859039,130.86,130.83,9.66659946]
[1764682044059,3.16859039,130.86,130.83,0.05709946]
[1764682045468,3.12,130.85,130.83,0.05709946]
[1764682047665,0.04859039,130.86,130.83,2.78709946]
[1764682047968,0.04859039,130.86,130.85,2.73]
[1764682048467,3.16859039,130.86,130.83,2.78709946]
[1764682049981,3.16859039,130.86,130.83,9.66659946]
[1764682050663,0.04859039,130.86,130.84,2.73]
[1764682052972,0.04859039,130.86,130.84,9.6086]
[1764682054971,0.04859039,130.86,130.85,9.5885]
[1764682055466,0.04859039,130.86,130.85,6.8785]
[1764682056167,3.27,130.91,130.86,2.71]
[1764682056973,3.27,130.91,130.87,6.8775]
[1764682057376,3.3227977,130.9,130.88,0.05150951]
[1764682057675,0.0527977,130.9,130.88,2.76150951]
[1764682057975,3.3227977,130.9,130.88,0.05150951]
[1764682058372,0.0527977,130.9,130.88,2.76150951]
[1764682058569,3.27,130.95,130.89,2.73]
[1764682058878,3.27,130.95,130.91,2.73]
[1764682059578,3.36837924,130.94,130.92,0.04915189]
[1764682061381,0.04837924,130.94,130.92,2.77915189]
[1764682061566,0.04837924,130.94,130.92,0.04915189]
[1764682061779,3.36837924,130.94,130.92,0.04915189]
[1764682062274,0.04837924,130.94,130.92,2.77915189]
[1764682063276,0.04837924,130.94,130.93,2.73]
[1764682063976,3.36837924,130.94,130.92,0.04915189]
[1764682067374,3.32,130.93,130.86,2.73]
[1764682068485,3.32,130.9,130.88,0.04828262]
[1764682072383,6.8764,130.89,130.88,0.04828262]
[1764682072584,10.1964,130.89,130.88,0.04828262]
[1764682073179,3.32,130.9,130.88,0.04828262]
[1764682074486,10.1959,130.9,130.88,0.04828262]
[1764682074682,3.32,130.89,130.88,0.04828262]
[1764682075212,3.32,130.89,130.82,66.25549]
[1764682075590,3.32,130.87,130.84,2.78]
[1764682075891,3.32,130.87,130.83,2.78]
[1764682076090,3.36844158,130.86,130.84,0.0486059]
[1764682079697,10.1985,130.85,130.84,0.0486059]
[1764682080494,0.04844158,130.86,130.84,4.3486059]
[1764682080692,0.04844158,130.86,130.84,2.8286059]
[1764682081492,3.36844158,130.86,130.84,0.0486059]
[1764682088305,70.68844158,130.86,130.82,1.47549]
[1764682088510,3.32,130.85,130.82,1.47549]
[1764682088806,3.02,130.83,130.77,6.8825]
[1764682089007,3.02,130.81,130.73,2.83]
[1764682089402,3.07711356,130.78,130.76,0.05799557]
[1764682091808,0.05711356,130.78,130.76,2.88799557]
[1764682092000,3.07711356,130.78,130.76,0.05799557]
[1764682093011,3.02,130.84,130.81,2.83]
[1764682093609,3.02,130.84,130.8,9.7112]
[1764682094001,0.05213987,130.83,130.81,2.88803689]
[1764682094404,3.07213987,130.83,130.81,0.05803689]
[1764682109126,0.05213987,130.83,130.81,2.88803689]
[1764682109823,0.05213987,130.83,130.81,9.76823689]
[1764682110019,0.05213987,130.83,130.82,2.83]
[1764682110523,0.05213987,130.83,130.82,9.7101]
[1764682114213,0.05213987,130.83,130.82,6.8801]
[1764682114614,0.05213987,130.83,130.82,9.7001]
[1764682114813,0.05213987,130.83,130.82,2.82]
[1764682116124,0.05213987,130.83,130.81,2.87803689]
[1764682117325,0.05213987,130.83,130.81,9.75863689]
[1764682121434,3.31213987,130.83,130.81,9.75863689]
[1764682123132,3.31213987,130.83,130.81,6.93863689]
[1764682123435,3.31213987,130.83,130.81,0.05803689]
[1764682124132,3.26,130.81,130.78,6.8821]
[1764682124526,3.26,130.81,130.77,6.8827]
[1764682124926,3.26,130.79,130.77,6.8827]
[1764682125126,3.31170538,130.79,130.77,6.93167878]
[1764682125531,3.31170538,130.79,130.77,0.04897878]
[1764682130936,0.05170538,130.79,130.77,2.86897878]
[1764682131546,3.31170538,130.79,130.77,2.86897878]
[1764682131737,0.05170538,130.79,130.77,2.86897878]
[1764682132448,3.31170538,130.79,130.77,2.86897878]
[1764682132958,3.31170538,130.79,130.77,0.04897878]
[1764682134639,3.26,130.77,130.7,2.82]
[1764682134838,3.26,130.75,130.72,2.82]
[1764682135638,3.31061155,130.75,130.72,9.7574444]
[1764682137250,0.05061155,130.75,130.73,2.82]
[1764682137646,3.31061155,130.75,130.73,2.82]
[1764682138548,3.31061155,130.75,130.72,2.8721444]
[1764682140250,0.05061155,130.75,130.73,2.82]
[1764682141454,3.31061155,130.75,130.72,0.0521444]
[1764682141656,2.04255108,130.75,130.72,0.0521444]
[1764682141836,10.1445,130.74,130.72,0.0521444]
[1764682142036,3.26,130.73,130.72,0.0521444]
[1764682142247,5.25193953,130.73,130.72,0.0521444]
[1764682143553,12.13673953,130.73,130.72,0.0521444]
[1764682144549,3.26,130.72,130.67,6.8878]
[1764682145053,3.26,130.72,130.67,9.7078]
[1764682145458,3.26,130.7,130.68,0.05705423]
[1764682146249,0.05667343,130.71,130.68,2.87705423]
[1764682146952,3.31667343,130.71,130.68,2.87705423]
[1764682147848,5.30861296,130.71,130.68,0.05705423]
[1764682148047,3.26,130.7,130.68,0.05705423]
[1764682148651,10.1468,130.7,130.68,0.05705423]
[1764682148850,3.19,130.69,130.68,0.05705423]
[1764682149053,3.19,130.69,130.63,2.84]
[1764682149445,3.19,130.67,130.63,2.84]
[1764682149645,3.19,130.67,130.61,6.8908]
[1764682149841,3.19,130.67,130.62,2.84]
[1764682150046,0.0533275,130.66,130.63,2.88831357]
[1764682150247,3.2433275,130.66,130.63,2.88831357]
[1764682151749,10.1319275,130.66,130.63,0.04831357]
[1764682151949,3.19,130.65,130.63,0.04831357]
[1764682152355,10.0793,130.65,130.63,0.04831357]
[1764682152553,3.19,130.64,130.58,68.8923]
[1764682152842,3.19,130.64,130.58,71.7323]
[1764682153044,70.35,130.64,130.58,71.7323]
[1764682153348,3.19,130.63,130.58,2.84]
[1764682153548,3.24565086,130.62,130.59,0.04910088]
[1764682154548,3.19,130.61,130.59,0.04910088]
[1764682155057,3.19,130.61,130.55,2.84]
[1764682155756,3.19,130.61,130.56,2.84]
[1764682155964,0.05770843,130.6,130.58,2.84]
[1764682156365,3.24770843,130.6,130.57,0.04887665]
[1764682162169,0.05770843,130.6,130.58,2.84]
[1764682162667,3.24770843,130.6,130.57,6.94177665]
[1764682163262,3.24770843,130.6,130.57,0.04887665]
[1764682166770,10.13940843,130.6,130.57,0.04887665]
[1764682166969,3.19,130.59,130.57,0.04887665]
[1764682169574,10.0828,130.58,130.57,0.04887665]
[1764682170669,3.19,130.57,130.52,2.89]
[1764682171673,0.04849544,130.56,130.53,0.05751212]
[1764682171874,3.23849544,130.56,130.53,9.84291212]
[1764682172877,3.23849544,130.56,130.53,6.95291212]
[1764682174077,3.23849544,130.56,130.53,9.84291212]
[1764682175178,3.23849544,130.56,130.54,2.89]
[1764682176977,0.04849544,130.56,130.54,9.7849]
[1764682177170,0.04849544,130.56,130.55,2.89]
[1764682178882,3.30849544,130.56,130.54,6.8949]
[1764682179284,3.30849544,130.56,130.53,2.94751212]
[1764682179783,3.30849544,130.56,130.53,0.05751212]
[1764682181378,10.1547,130.55,130.53,0.05751212]
[1764682181582,3.26,130.54,130.53,0.05751212]
[1764682182574,0.04849544,130.56,130.53,2.94751212]
[1764682184786,0.04849544,130.56,130.53,9.84281212]
[1764682185081,0.04849544,130.56,130.54,2.89]
[1764682187678,3.30849544,130.56,130.54,2.89]
[1764682187879,3.30849544,130.56,130.53,2.94751212]
[1764682193691,10.20229544,130.56,130.53,0.05751212]
[1764682193892,3.30849544,130.56,130.53,0.05751212]
[1764682194888,3.26,130.54,130.53,0.05751212]
[1764682195389,70.32,130.54,130.48,2.89]
[1764682195595,3.26,130.52,130.48,2.89]
[1764682196697,3.31058945,130.51,130.49,2.94566318]
[1764682196897,3.31779257,130.51,130.49,0.05247808]
[1764682197098,0.05779257,130.51,130.49,2.94247808]
[1764682197293,3.31779257,130.51,130.49,0.05247808]
[1764682199096,3.31779257,130.51,130.46,2.89]
[1764682200194,10.157,130.5,130.47,2.91498195]
[1764682200391,3.26,130.49,130.47,0.02498195]
[1764682200703,10.157,130.5,130.47,2.91498195]
[1764682200894,3.26,130.49,130.47,0.02498195]
[1764682201094,10.1576,130.49,130.47,0.02498195]
[1764682201300,3.26,130.48,130.47,0.02498195]
[1764682205204,3.26,130.48,130.44,2.89]
[1764682206303,73.9576,130.49,130.44,2.89]
[1764682206304,3.26,130.46,130.44,2.89]
[1764682206504,0.04901402,130.47,130.44,2.89]
[1764682207407,3.30901402,130.47,130.44,2.89]
[1764682208803,3.30901402,130.47,130.42,9.7912]
[1764682209000,3.22,130.45,130.4,2.89]
[1764682209208,3.27896952,130.44,130.4,2.89]
[1764682209605,0.05896952,130.44,130.4,2.89]
[1764682210204,0.05896952,130.44,130.41,2.89]
[1764682210611,0.05896952,130.44,130.41,9.7916]
[1764682210906,0.05896952,130.44,130.42,2.89]
[1764682211306,0.05896952,130.44,130.42,9.791]
[1764682211512,0.05896952,130.44,130.43,2.89]
[1764682214814,1.78143158,130.5,130.43,2.89]
[1764682214815,3.22,130.5,130.45,2.83]
[1764682215116,3.22,130.49,130.45,2.83]
[1764682215416,3.22,130.48,130.45,2.83]
[1764682215804,3.27003972,130.48,130.45,2.88228552]
[1764682216514,0.05003972,130.48,130.46,2.83]
[1764682217308,0.05003972,130.48,130.46,9.729]
[1764682217518,0.05003972,130.48,130.47,2.83]
[1764682218516,3.22,130.53,130.48,2.83]
[1764682218718,3.22,130.51,130.45,2.83]
[1764682219216,3.22,130.5,130.45,2.83]
[1764682219422,3.27474958,130.49,130.46,0.05367481]
[1764682219717,110.5428,130.46,130.39,2.83]
[1764682219913,3.22,130.43,130.39,2.83]
[1764682220509,3.22,130.43,130.34,2.83]
[1764682220718,0.05816441,130.4,130.38,2.83]
[1764682222014,0.05816441,130.4,130.39,2.83]
[1764682223719,0.05816441,130.4,130.37,0.05533443]
[1764682223916,0.05816441,130.4,130.38,2.83]
[1764682224117,3.27816441,130.4,130.37,0.05533443]
[1764682227214,0.05816441,130.4,130.37,2.88533443]
[1764682227417,3.27816441,130.4,130.37,2.88533443]
[1764682230321,0.05816441,130.4,130.37,2.88533443]
[1764682230626,3.27816441,130.4,130.37,0.05533443]
[1764682231628,10.18076441,130.4,130.37,0.05533443]
[1764682231825,3.22,130.39,130.37,0.05533443]
[1764682233616,3.22,130.39,130.37,2.89533443]
[1764682235824,0.05816441,130.4,130.39,2.84]
[1764682238931,0.05816441,130.4,130.37,2.89533443]
[1764682238932,3.36816441,130.4,130.37,2.89533443]
[1764682239334,0.05816441,130.4,130.38,2.84]
[1764682239625,3.31,130.47,130.4,2.84]
[1764682239824,3.31,130.47,130.43,2.84]
[1764682240231,70.29,130.49,130.43,2.84]
[1764682240429,0.05682516,130.47,130.45,0.04979835]
[1764682241421,3.36682516,130.47,130.45,0.04979835]
[1764682242731,0.05682516,130.47,130.45,0.04979835]
[1764682242931,3.36682516,130.47,130.45,0.04979835]
[1764682244631,0.05682516,130.47,130.45,2.88979835]
[1764682246422,0.05682516,130.47,130.45,9.78939835]
[1764682248226,3.36682516,130.47,130.45,0.04979835]
[1764682250935,0.05682516,130.47,130.45,2.88979835]
[1764682251835,3.36682516,130.47,130.45,0.04979835]
[1764682258935,0.05682516,130.47,130.45,2.88979835]
[1764682259130,3.36682516,130.47,130.45,2.88979835]
[1764682259340,0.05682516,130.47,130.45,2.88979835]
[1764682260444,0.05682516,130.47,130.46,6.8991]
[1764682261140,3.36682516,130.47,130.45,0.04979835]
[1764682264853,3.31,130.46,130.4,6.9019]
[1764682265051,3.31,130.46,130.41,2.84]
[1764682265748,0.05888745,130.45,130.43,2.84]
[1764682266452,0.05888745,130.45,130.44,2.84]
[1764682268352,0.05888745,130.45,130.43,6.9004]
[1764682268554,0.05888745,130.45,130.42,2.89813636]
[1764682268555,3.36888745,130.45,130.42,2.89813636]
[1764682268861,3.36888745,130.45,130.42,0.05813636]
[1764682270261,3.36888745,130.45,130.42,2.89813636]
[1764682272165,0.05888745,130.45,130.42,9.79933636]
[1764682272363,0.05888745,130.45,130.42,6.95933636]
[1764682272658,3.11888745,130.45,130.42,6.95933636]
[1764682272964,3.11888745,130.45,130.42,0.05813636]
[1764682273159,3.06,130.43,130.37,2.84]
[1764682273559,3.06,130.42,130.37,9.7438]
[1764682274057,0.05193486,130.41,130.37,2.84]
[1764682274263,3.06,130.4,130.37,2.84]
[1764682275059,0.05193486,130.41,130.39,2.84]
[1764682275964,0.05193486,130.41,130.4,9.7423]
[1764682281458,3.06,130.46,130.41,2.79]
[1764682281669,3.06,130.46,130.42,2.79]
[1764682282671,3.11407985,130.45,130.43,0.05604652]
[1764682282969,3.11407985,130.45,130.43,2.84604652]
[1764682282970,0.05407985,130.45,130.43,2.84604652]
[1764682284671,3.11407985,130.45,130.43,6.95654652]
[1764682284968,3.11407985,130.45,130.43,0.05604652]
[1764682290872,0.05407985,130.45,130.43,2.84604652]
[1764682291775,0.05407985,130.45,130.43,9.74664652]
[1764682292373,0.05407985,130.45,130.43,2.84604652]
[1764682292978,0.05407985,130.45,130.43,9.74664652]
[1764682294277,0.05407985,130.45,130.44,2.79]
[1764682294579,0.05407985,130.45,130.44,9.6902]
[1764682296274,0.05407985,130.45,130.43,0.05604652]
[1764682296275,70.17,130.49,130.46,9.689]
[1764682296471,3.33,130.48,130.46,6.899]
[1764682297066,3.38735419,130.48,130.46,9.74252394]
[1764682297478,0.05735419,130.48,130.46,9.74252394]
[1764682297670,0.05735419,130.48,130.47,2.79]
[1764682298682,0.05735419,130.48,130.47,9.6886]
[1764682301794,0.05735419,130.48,130.47,6.8986]
[1764682303385,0.05735419,130.48,130.47,9.6786]
[1764682303788,3.36735419,130.48,130.46,6.95262394]
[1764682304785,3.36735419,130.48,130.46,9.73262394]
[1764682305385,3.36735419,130.48,130.46,0.05352394]
[1764682305979,0.05735419,130.48,130.46,9.73232394]
[1764682306285,3.36735419,130.48,130.46,9.73232394]
[1764682306485,0.05735419,130.48,130.46,2.83352394]
[1764682306684,3.31,130.54,130.48,2.78]
[1764682307186,3.31,130.54,130.46,107.3148]
[1764682307187,3.31,130.54,130.51,2.78]
[1764682307579,3.36324305,130.54,130.51,0.05592638]
[1764682311192,3.36324305,130.54,130.51,9.73232638]
[1764682311489,3.36324305,130.54,130.51,2.83592638]
[1764682312790,0.05324305,130.54,130.53,2.78]
[1764682313787,107.1906,130.62,130.54,2.78]
[1764682313788,3.31,130.62,130.54,2.78]
[1764682313989,3.31,130.6,130.54,2.78]
[1764682314893,3.31,130.57,130.56,0.05636232]
[1764682315986,0.05547319,130.58,130.56,0.05636232]
[1764682315987,3.36547319,130.58,130.56,0.05636232]
[1764682316387,0.05547319,130.58,130.56,2.83636232]
[1764682319098,0.05547319,130.58,130.56,9.72986232]
[1764682319287,3.31,130.64,130.57,2.78]
[1764682319896,3.31,130.63,130.58,2.78]
[1764682320397,3.36320899,130.62,130.59,2.83651343]
[1764682320989,0.05320899,130.62,130.59,2.83651343]
[1764682321190,0.05320899,130.62,130.6,2.78]
[1764682321386,3.31,130.65,130.6,2.78]
[1764682321991,3.31,130.68,130.6,2.78]
[1764682322401,0.05248071,130.65,130.64,2.78]
[1764682324902,6.8874,130.69,130.64,2.78]
[1764682325207,10.1974,130.69,130.64,2.78]
[1764682325703,3.31,130.68,130.63,0.04978393]
[1764682326008,3.36864043,130.67,130.63,0.04978393]
[1764682326222,3.36864043,130.67,130.63,2.82978393]
[1764682329214,0.05864043,130.67,130.63,2.82978393]
[1764682329601,3.30864043,130.67,130.63,2.82978393]
[1764682331101,0.05864043,130.67,130.63,2.82978393]
[1764682331305,3.30864043,130.67,130.63,2.82978393]
[1764682331703,0.05864043,130.67,130.63,2.82978393]
[1764682331902,0.05864043,130.67,130.63,9.71968393]
[1764682332108,0.05864043,130.67,130.64,2.77]
[1764682333307,3.25,130.73,130.65,2.77]
[1764682334119,3.25,130.69,130.65,2.77]
[1764682334612,3.29955369,130.68,130.66,0.05640987]
[1764682334811,3.29955369,130.68,130.55,107.2407]
[1764682334812,3.25,130.66,130.59,2.77]
[1764682335014,5.02513897,130.61,130.56,2.77]
[1764682335317,11.91633897,130.61,130.56,2.77]
[1764682335618,3.25,130.6,130.52,2.77]
[1764682335807,5.02513897,130.59,130.55,0.04858013]
[1764682336008,3.30248922,130.57,130.55,0.04858013]
[1764682336216,5.07762819,130.57,130.55,0.04858013]
[1764682336411,3.30248922,130.57,130.55,0.04858013]
[1764682336716,3.25,130.56,130.55,0.04858013]
[1764682337121,3.30248922,130.57,130.55,0.04858013]
[1764682338406,0.05248922,130.57,130.55,2.81858013]
[1764682341410,6.8913,130.61,130.55,2.81858013]
[1764682341817,66.56,130.62,130.56,2.77]
[1764682342419,3.25,130.6,130.56,2.77]
[1764682342612,3.30217898,130.6,130.58,0.05862352]
[1764682345630,0.05217898,130.6,130.58,0.05862352]
[1764682347928,3.30217898,130.6,130.58,0.05862352]
[1764682348625,0.05217898,130.6,130.58,2.82862352]
[1764682349029,3.25,130.63,130.58,2.82862352]
[1764682349229,3.25,130.63,130.58,0.05862352]
[1764682350032,0.05450999,130.62,130.58,9.72132352]
[1764682350231,0.05450999,130.62,130.59,2.8278731]
[1764682350729,3.30450999,130.62,130.59,0.0578731]
[1764682354234,3.30450999,130.62,130.53,2.78]
[1764682354535,3.21,130.59,130.53,9.6754]
[1764682354737,3.21,130.58,130.53,9.6754]
[1764682355333,3.26113633,130.57,130.54,0.05233126]
[1764682355532,3.26113633,130.57,130.54,6.94713126]
[1764682356233,3.26113633,130.57,130.54,9.78713126]
[1764682357232,3.26113633,130.57,130.54,2.89233126]
[1764682357432,3.26113633,130.57,130.54,0.05233126]
[1764682359736,3.26113633,130.57,130.54,2.89233126]
[1764682360131,0.05113633,130.57,130.54,2.89233126]
[1764682361544,3.35113633,130.57,130.54,0.05233126]
[1764682362645,3.35113633,130.57,130.54,2.89233126]
[1764682362842,0.05113633,130.57,130.54,2.89233126]
[1764682363438,0.05113633,130.57,130.54,9.78683126]
[1764682363644,0.05113633,130.57,130.55,2.84]
[1764682365445,0.05113633,130.57,130.55,9.7343]
[1764682365745,3.35113633,130.57,130.55,6.8943]
[1764682366647,0.05113633,130.57,130.55,9.7343]
[1764682367640,3.35113633,130.57,130.55,9.7343]
[1764682367841,3.35113633,130.57,130.54,0.05233126]
[1764682368950,3.35113633,130.57,130.54,2.89233126]
[1764682369150,3.35113633,130.57,130.54,0.05233126]
[1764682369346,3.35113633,130.57,130.54,2.89233126]
[1764682372343,0.05113633,130.57,130.55,2.84]
[1764682373647,3.3,130.6,130.56,2.84]
[1764682373857,69.82,130.62,130.57,2.84]
[1764682374351,1.77816501,130.64,130.6,2.84]
[1764682374352,3.3,130.63,130.6,2.84]
[1764682374851,3.35846424,130.63,130.6,2.88994502]
[1764682376448,0.05846424,130.63,130.6,2.88994502]
[1764682377153,0.05846424,130.63,130.61,2.84]
[1764682377746,0.05846424,130.63,130.61,9.7312]
[1764682378057,0.05846424,130.63,130.62,2.84]
[1764682381254,0.05846424,130.63,130.61,6.8911]
[1764682381453,0.05846424,130.63,130.61,9.7311]
[1764682381657,3.35846424,130.63,130.61,6.8911]
[1764682382048,0.05846424,130.63,130.61,9.7311]
[1764682383755,3.35846424,130.63,130.61,6.8911]
[1764682384345,115.26029235,130.7,130.66,107.1552]
[1764682384346,0.99062,130.7,130.66,107.1552]
[1764682384552,9.42205172,130.76,130.7,2.78]
[1764682384553,3.3,130.76,130.7,2.78]
[1764682384747,3.3,130.76,130.69,107.1307]
[1764682384748,5.07816501,130.74,130.67,2.78]
[1764682385148,3.3,130.73,130.67,2.78]
[1764682385357,1.77816501,130.74,130.69,0.05586518]
[1764682385358,3.35466891,130.71,130.69,0.05586518]
[1764682385558,0.05466891,130.71,130.69,0.05586518]
[1764682385757,0.05466891,130.71,130.69,2.83586518]
[1764682386659,3.3,130.77,130.69,2.83586518]
[1764682386960,10.183,130.77,130.7,9.6664]
[1764682387456,3.34857351,130.75,130.72,0.05417196]
[1764682388957,3.34857351,130.75,130.72,9.70927196]
[1764682388958,0.04857351,130.75,130.72,9.70927196]
[1764682389158,0.04857351,130.75,130.73,2.77]
[1764682389457,0.04857351,130.75,130.72,9.70927196]
[1764682390759,0.04857351,130.75,130.72,2.82417196]
[1764682392162,3.34857351,130.75,130.72,2.82417196]
[1764682392754,0.04857351,130.75,130.72,2.82417196]
[1764682394763,0.04857351,130.75,130.72,9.70937196]
[1764682394964,0.04857351,130.75,130.72,2.82417196]
[1764682395868,0.04857351,130.75,130.74,2.77]
[1764682397065,0.04857351,130.75,130.73,6.8847]
[1764682397066,3.3,130.8,130.75,2.77]
[1764682398174,3.35116712,130.79,130.76,0.05385975]
[1764682398671,3.35116712,130.79,130.76,2.82385975]
[1764682398672,0.05116712,130.79,130.76,2.82385975]
[1764682398870,0.05116712,130.79,130.76,109.89445975]
[1764682399072,3.3,130.85,130.78,9.6518]
[1764682399372,3.3,130.85,130.78,2.77]
[1764682399974,3.3,130.85,130.74,107.0872]
[1764682399975,3.35205897,130.83,130.8,0.05381741]
[1764682401777,0.05205897,130.83,130.8,2.82381741]
[1764682402365,3.35205897,130.83,130.8,2.82381741]
[1764682403395,3.35205897,130.83,130.8,9.70481741]
[1764682405193,0.05205897,130.83,130.81,9.6503]
[1764682405897,3.35205897,130.83,130.8,0.05381741]
[1764682406788,3.3,130.82,130.8,0.05381741]
[1764682412488,3.21,130.8,130.73,2.77]
[1764682413200,3.21,130.78,130.73,9.6547]
[1764682413398,3.21,130.78,130.73,2.77]
[1764682413594,3.21,130.76,130.74,0.05749976]
[1764682414198,69.53,130.76,130.74,0.05749976]
[1764682414397,3.21,130.75,130.74,0.05749976]
[1764682415197,66.32,130.76,130.74,0.05749976]
[1764682415501,69.53,130.76,130.74,0.05749976]
[1764682419506,3.25,130.75,130.74,0.05749976]
[1764682420801,0.04907613,130.77,130.74,2.88749976]
[1764682421400,3.29907613,130.77,130.74,2.88749976]
[1764682421709,3.29907613,130.77,130.74,0.05749976]
[1764682422210,3.25,130.76,130.74,0.05749976]
[1764682422906,3.25,130.75,130.74,0.05749976]
[1764682428310,0.04907613,130.77,130.76,6.8833]
[1764682429003,3.29907613,130.77,130.76,6.8833]
[1764682429307,3.29907613,130.77,130.74,6.94159976]